bitfinex-derivatives/quotes_ETHF0:USTF0_20240925
["timestamp","ask_amount","ask_price","bid_price","bid_amount"]
[1727277319140,0.38088,2625.6,2625.3,0.75582]
[1727277319433,6.2599,2625.5,2624.9,4.20597173]
[1727277319638,6.2599,2625.5,2624.8,5.50673659]
[1727277319639,6.6408,2625.5,2625.2,0.38093]
[1727277320033,6.2599,2625.5,2625.0,7.7781815]
[1727277320338,6.6408,2625.5,2625.2,0.38092]
[1727277321643,0.38092,2625.4,2625.0,0.38097]
[1727277321823,6.2599,2625.5,2624.9,7.80374257]
[1727277321824,0.3707,2625.3,2624.9,7.80374257]
[1727277322028,0.3707,2625.3,2625.0,0.38096]
[1727277322029,3.2078,2625.2,2625.0,0.38096]
[1727277322330,0.38096,2625.1,2624.9,0.38098]
[1727277322531,0.3762,2625.0,2624.8,0.38098]
[1727277323038,0.3762,2625.0,2624.7,0.3749]
[1727277323236,0.3762,2625.0,2624.8,0.381]
[1727277323439,0.3762,2625.0,2624.8,7.87341942]
[1727277323838,0.3762,2625.0,2624.3,4.16836659]
[1727277323839,0.381,2624.8,2624.6,0.38102]
[1727277324029,5.8778,2624.9,2624.3,1.37627173]
[1727277324030,0.3882,2624.7,2624.3,0.95268]
[1727277324331,0.3882,2624.7,2624.5,8.51665315]
[1727277324332,1.13541,2624.7,2624.5,8.51665315]
[1727277324530,0.38103,2624.6,2624.4,8.13562315]
[1727277324729,0.38103,2624.6,2624.4,0.38105]
[1727277324932,0.3762,2624.5,2624.4,0.38105]
[1727277326037,0.75724,2624.5,2624.0,0.99817173]
[1727277326239,0.75725,2624.5,2623.9,7.25407173]
[1727277326427,0.38105,2624.4,2624.2,8.43719291]
[1727277326630,0.75725,2624.5,2624.2,0.38108]
[1727277327132,0.75725,2624.5,2624.1,0.38109]
[1727277327133,0.3762,2624.5,2624.1,0.38109]
[1727277327326,0.38105,2624.4,2624.1,0.38109]
[1727277327526,0.75724,2624.5,2624.2,7.97010997]
[1727277327839,0.3762,2624.5,2624.3,0.38107]
[1727277328040,0.3762,2624.5,2623.9,3.0481]
[1727277328041,0.75724,2624.5,2624.2,0.38107]
[1727277328227,0.75724,2624.5,2624.1,8.6138017]
[1727277328228,0.38106,2624.4,2624.1,8.6138017]
[1727277328434,3.2078,2624.3,2624.1,8.2327117]
[1727277328635,0.3681,2624.2,2623.5,0.99817173]
[1727277328831,0.3681,2624.2,2623.4,1.49836659]
[1727277328832,3.41941,2624.1,2623.8,0.38114]
[1727277329034,3.41941,2624.1,2623.6,8.2327117]
[1727277329035,3.6067,2624.0,2623.6,8.2327117]
[1727277329242,3.98782,2624.0,2623.7,0.38114]
[1727277329537,3.98782,2624.0,2623.3,0.38121]
[1727277329538,0.38117,2623.6,2623.3,0.38121]
[1727277329735,0.7582,2623.5,2623.0,1.37577173]
[1727277329937,3.05124,2623.2,2622.8,0.38128]
[1727277330438,3.2078,2623.3,2622.5,5.8778]
[1727277330636,3.58902,2623.3,2622.5,5.8778]
[1727277330830,3.2078,2623.3,2622.6,8.10744652]
[1727277331143,0.38123,2623.2,2622.7,0.38129]
[1727277331331,0.3989,2623.4,2622.5,0.38133]
[1727277331332,3.05128,2622.9,2622.5,0.38133]
[1727277331532,0.7902,2622.8,2622.4,0.75894]
[1727277331737,1.1748,2622.8,2622.1,2.67]
[1727277332032,1.1748,2622.8,2622.4,0.38133]
[1727277332033,3.2078,2622.7,2622.4,0.38133]
[1727277332242,2.67,2622.5,2622.2,12.29276179]
[1727277332437,3.2078,2622.3,2622.0,0.38139]
[1727277332638,3.2078,2622.3,2621.8,3.2078]
[1727277332639,5.8778,2622.3,2621.8,3.2078]
[1727277332841,2.67,2622.1,2621.6,0.3697]
[1727277333056,0.3971,2622.2,2621.9,0.38141]
[1727277333347,0.3971,2622.2,2621.8,0.38143]
[1727277333535,0.3971,2622.2,2621.7,11.22426691]
[1727277333940,0.3971,2622.2,2621.9,0.38141]
[1727277334143,0.3971,2622.2,2621.7,10.84282691]
[1727277334144,0.3971,2622.2,2622.0,0.3814]
[1727277334345,0.3971,2622.2,2621.7,10.84282691]
[1727277334346,3.2078,2622.3,2622.1,0.38138]
[1727277334737,0.3971,2622.7,2622.1,3.8136]
[1727277334942,0.3971,2622.7,2622.2,0.3697]
[1727277335143,0.3971,2622.7,2622.2,0.75107]
[1727277335743,0.3971,2622.7,2622.3,0.38136]
[1727277335947,0.3971,2622.7,2622.2,0.3697]
[1727277336150,0.3971,2622.7,2622.3,4.31004995]
[1727277336452,0.3971,2622.7,2622.2,0.3697]
[1727277336744,0.3971,2622.7,2622.2,0.75106]
[1727277337046,0.3971,2622.7,2622.2,0.75107]
[1727277337943,0.3971,2622.7,2622.2,0.3697]
[1727277338146,0.3971,2622.7,2622.4,0.38134]
[1727277338739,0.3971,2622.7,2622.3,0.38135]
[1727277339951,0.3971,2622.7,2622.4,0.38134]
[1727277340641,0.3971,2622.7,2622.3,0.38135]
[1727277341044,0.3971,2622.7,2622.1,3.2078]
[1727277341241,0.3971,2622.7,2622.2,0.38137]
[1727277341443,0.3971,2622.7,2622.1,0.38138]
[1727277341650,3.2078,2622.5,2622.1,0.38138]
[1727277342037,3.58913,2622.5,2622.1,0.38138]
[1727277342437,3.58914,2622.5,2622.1,0.38138]
[1727277342945,0.38135,2622.4,2622.0,8.59009704]
[1727277343149,0.38135,2622.4,2622.0,8.97148704]
[1727277343349,3.2078,2622.5,2622.0,8.59009704]
[1727277343350,3.58914,2622.5,2622.0,8.59009704]
[1727277343544,3.58913,2622.5,2622.0,8.59009704]
[1727277343743,3.58913,2622.5,2622.2,0.38137]
[1727277343744,3.2078,2622.5,2622.2,0.38137]
[1727277344243,3.2078,2622.5,2622.0,8.59009704]
[1727277344446,3.2078,2622.5,2622.3,0.38136]
[1727277344643,3.2078,2622.5,2622.0,8.59009704]
[1727277344842,0.3971,2622.7,2621.8,0.38143]
[1727277344843,0.38139,2622.1,2621.8,0.38143]
[1727277345156,0.3846,2622.0,2621.8,0.38143]
[1727277345452,0.3846,2622.0,2621.8,0.38142]
[1727277345647,0.3846,2622.0,2621.9,0.38142]
[1727277346149,3.2078,2622.2,2622.0,0.38139]
[1727277346348,3.2078,2622.2,2622.1,0.38139]
[1727277346647,3.2078,2622.2,2622.0,0.3814]
[1727277346851,0.3802,2622.4,2622.1,0.38139]
[1727277347251,0.3802,2622.4,2621.7,9.16581966]
[1727277347252,0.3802,2622.4,2622.2,0.38137]
[1727277347543,0.3802,2622.4,2622.1,0.38138]
[1727277347850,0.76155,2622.4,2622.1,0.38138]
[1727277348646,0.76155,2622.4,2622.0,0.38139]
[1727277348851,0.76155,2622.4,2621.9,0.3814]
[1727277349044,0.76155,2622.4,2622.0,0.3814]
[1727277349247,0.38139,2622.1,2621.8,0.38143]
[1727277349451,0.76681,2622.0,2621.7,0.38144]
[1727277349650,0.3854,2622.0,2621.8,0.38143]
[1727277349852,0.3854,2622.0,2621.7,7.85087972]
[1727277349853,0.38142,2621.9,2621.7,7.85087972]
[1727277350054,0.38142,2621.9,2621.7,8.23231972]
[1727277350055,0.403,2621.9,2621.7,8.23231972]
[1727277350246,0.403,2621.9,2621.7,7.85087972]
[1727277350549,0.403,2621.9,2621.7,0.38143]
[1727277350740,0.403,2621.9,2621.6,3.2078]
[1727277350943,0.403,2621.9,2621.7,0.38144]
[1727277351543,0.403,2621.9,2621.6,3.2078]
[1727277351943,3.5932,2622.0,2621.9,0.38142]
[1727277352352,3.5932,2622.0,2621.8,0.38142]
[1727277353047,0.77398,2622.2,2621.9,0.38141]
[1727277353242,0.3749,2622.1,2621.9,0.38141]
[1727277353648,0.3749,2622.1,2622.0,0.3814]
[1727277353844,0.3749,2622.1,2621.9,0.38141]
[1727277354054,0.7563,2622.1,2621.8,0.38143]
[1727277354361,0.7563,2622.1,2621.6,3.5885]
[1727277354362,3.58921,2622.0,2621.7,0.38144]
[1727277355251,3.2078,2622.0,2621.9,0.38142]
[1727277355653,0.3749,2622.1,2621.9,0.38142]
[1727277355952,0.75629,2622.1,2621.8,0.38142]
[1727277356146,0.3749,2622.1,2621.9,0.38141]
[1727277356350,0.3749,2622.1,2622.0,0.3814]
[1727277356554,0.3749,2622.1,2621.6,4.16144]
[1727277356555,0.3749,2622.1,2621.9,0.38141]
[1727277357270,0.3749,2622.1,2622.0,0.3814]
[1727277357462,0.3749,2622.1,2621.7,0.95362]
[1727277357759,0.3749,2622.1,2621.9,0.38141]
[1727277358161,0.75629,2622.1,2621.6,3.2078]
[1727277358464,0.38148,2621.5,2621.2,3.2078]
[1727277358760,0.3764,2621.4,2621.2,0.38151]
[1727277359263,0.3764,2621.4,2621.3,0.3815]
[1727277360264,0.7579,2621.4,2621.1,8.04338176]
[1727277360461,0.3764,2621.4,2621.2,0.38151]
[1727277360667,3.96569,2621.4,2621.1,0.38152]
[1727277360865,3.5842,2621.4,2621.1,7.87146787]
[1727277361058,3.5842,2621.4,2621.3,0.3815]
[1727277361253,3.4643,2621.6,2621.5,0.38148]
[1727277361254,0.7843,2621.6,2621.5,0.38148]
[1727277361463,0.7843,2621.6,2621.4,0.38148]
[1727277361963,0.7843,2621.6,2621.1,0.95384]
[1727277362163,0.7843,2621.6,2621.4,0.38148]
[1727277362665,0.7843,2621.6,2621.1,0.95384]
[1727277362865,0.7843,2621.6,2621.4,0.38148]
[1727277363066,1.16576,2621.6,2621.3,0.38149]
[1727277363274,2.68,2621.4,2621.0,0.392]
[1727277363575,2.68,2621.4,2620.8,1.73213]
[1727277363864,3.58928,2621.5,2620.9,3.63391]
[1727277364069,0.404,2621.6,2621.5,0.38148]
[1727277364258,0.3675,2621.7,2621.5,0.38148]
[1727277364559,0.74895,2621.7,2621.4,0.75498]
[1727277364758,2.68,2621.6,2621.0,0.95388]
[1727277365061,2.68,2621.6,2621.1,8.17268887]
[1727277365062,0.38148,2621.5,2621.1,8.17268887]
[1727277365268,0.74648,2621.5,2621.2,0.38152]
[1727277365759,3.06151,2621.3,2621.0,0.38154]
[1727277365962,0.4017,2621.2,2621.1,0.38153]
[1727277366162,0.4017,2621.2,2620.8,0.7968]
[1727277366163,0.4017,2621.2,2621.0,0.38154]
[1727277366355,0.4017,2621.2,2621.0,0.38155]
[1727277366557,0.4017,2621.2,2621.0,0.38154]
[1727277366760,0.4017,2621.2,2620.9,12.26169847]
[1727277366961,0.4017,2621.2,2621.1,0.38153]
[1727277367157,0.3835,2621.4,2621.2,0.38151]
[1727277367362,0.7852,2621.4,2621.3,0.3815]
[1727277367774,0.7852,2621.4,2621.2,0.38151]
[1727277367976,0.365,2621.5,2621.4,0.38149]
[1727277368265,0.365,2621.5,2621.0,4.15657085]
[1727277368469,3.5728,2621.5,2620.9,2.68]
[1727277368673,0.365,2621.5,2621.3,0.3815]
[1727277368868,0.365,2621.5,2621.4,0.38149]
[1727277369375,3.2078,2621.7,2621.6,0.38146]
[1727277369572,3.58925,2621.7,2621.4,0.38148]
[1727277369765,0.38145,2621.7,2621.4,0.38148]
[1727277369983,3.4828,2621.8,2621.4,0.38148]
[1727277370166,3.86424,2621.8,2621.2,1.7205]
[1727277370366,3.2078,2621.7,2621.2,1.7205]
[1727277370669,0.38145,2621.7,2621.5,0.38147]
[1727277370869,0.38145,2621.7,2621.3,4.19257297]
[1727277370870,1.18424,2621.8,2621.3,4.19257297]
[1727277371071,3.58925,2621.7,2621.5,0.38146]
[1727277371271,6.26925,2621.7,2621.5,0.38147]
[1727277371459,6.26925,2621.7,2621.2,1.7205]
[1727277371460,5.8878,2621.7,2621.2,1.7205]
[1727277371665,5.8878,2621.7,2621.6,0.38146]
[1727277371666,3.2078,2621.7,2621.6,0.38146]
[1727277372470,0.78314,2621.8,2621.6,0.38146]
[1727277372670,0.38145,2621.7,2621.5,0.38147]
[1727277372867,3.06146,2621.7,2621.5,0.38147]
[1727277373063,0.77027,2621.6,2621.3,0.3815]
[1727277373266,0.3888,2621.6,2621.2,0.3854]
[1727277373668,0.38149,2621.4,2621.2,0.38151]
[1727277373869,0.38148,2621.5,2621.3,0.3815]
[1727277374072,0.38148,2621.5,2621.0,0.3963]
[1727277374073,0.3815,2621.4,2621.2,0.38151]
[1727277374278,0.398,2621.3,2621.2,0.38151]
[1727277374979,0.3888,2621.6,2621.4,0.38149]
[1727277374980,0.77027,2621.6,2621.4,0.38149]
[1727277375179,0.3715,2621.5,2621.3,0.38149]
[1727277375376,0.75298,2621.5,2621.3,0.38149]
[1727277375780,0.3672,2621.4,2621.3,0.3815]
[1727277375980,0.3672,2621.4,2621.0,1.35017]
[1727277376173,0.3672,2621.4,2621.3,0.3815]
[1727277377669,3.2078,2621.7,2621.3,3.8152]
[1727277377981,5.8878,2621.7,2621.1,0.99817173]
[1727277378282,0.38148,2621.5,2621.0,2.34833173]
[1727277378480,0.38148,2621.5,2621.3,0.38149]
[1727277378868,3.2078,2621.7,2621.2,0.9538]
[1727277379173,1.1203,2621.8,2621.7,0.38145]
[1727277379777,3.2078,2622.0,2621.5,4.39479]
[1727277379966,3.2078,2622.0,2621.9,0.38142]
[1727277381483,3.2078,2622.0,2621.8,0.38142]
[1727277381778,3.2078,2622.0,2621.5,4.43927173]
[1727277381779,3.2078,2622.0,2621.5,1.75927173]
[1727277381981,0.38142,2621.9,2621.6,0.38146]
[1727277382184,2.68,2621.9,2621.6,0.38146]
[1727277382371,2.68,2621.9,2621.5,2.14074173]
[1727277382571,5.8878,2621.7,2621.5,0.99817173]
[1727277382779,3.4595,2621.6,2621.5,0.99817173]
[1727277382979,1.1816,2621.6,2621.5,1.37965173]
[1727277383779,1.1816,2621.6,2621.5,0.99817173]
[1727277383981,1.56306,2621.6,2621.5,0.99817173]
[1727277384686,1.1816,2621.6,2621.5,1.37965173]
[1727277384880,1.1816,2621.6,2621.5,0.38148]
[1727277385481,0.782,2621.6,2621.5,0.38148]
[1727277385689,0.4021,2621.6,2621.5,0.38148]
[1727277386488,0.78357,2621.6,2621.3,0.99766047]
[1727277386680,0.78357,2621.6,2621.4,0.38149]
[1727277386878,3.0821,2621.6,2621.3,0.99766047]
[1727277387077,3.0821,2621.6,2621.4,0.38148]
[1727277387382,0.38148,2621.5,2621.3,1.37916047]
[1727277387578,0.4021,2621.6,2621.5,0.38148]
[1727277387774,0.78357,2621.6,2621.4,0.38148]
[1727277387974,0.4021,2621.6,2621.4,0.38148]
[1727277388175,0.4021,2621.6,2621.3,0.99766047]
[1727277388176,0.38148,2621.5,2621.3,0.99766047]
[1727277389284,0.38148,2621.5,2621.3,1.37916047]
[1727277389588,0.38149,2621.4,2621.3,0.99766047]
[1727277389796,6.66339,2621.4,2621.3,0.99766047]
[1727277390086,6.66339,2621.4,2621.3,1.37916047]
[1727277390283,7.61712,2621.4,2621.3,0.99766047]
[1727277390480,12.38605,2621.4,2621.3,0.99766047]
[1727277390987,18.38605,2621.4,2621.3,0.99766047]
[1727277391181,11.43232,2621.4,2621.3,0.99766047]
[1727277391384,11.43232,2621.4,2620.8,0.95395]
[1727277391385,0.38152,2621.2,2621.1,0.38152]
[1727277392085,0.38153,2621.2,2621.1,0.38152]
[1727277392979,4.19673,2621.2,2621.1,0.38152]
[1727277393188,0.38153,2621.2,2621.1,0.38152]
[1727277393882,0.38153,2621.2,2620.8,1.95161047]
[1727277393883,0.3947,2621.3,2621.2,0.38152]
[1727277394474,3.6019,2621.4,2621.2,0.38152]
[1727277394475,3.6019,2621.4,2621.3,0.3815]
[1727277395282,3.98339,2621.4,2621.3,0.3815]
[1727277395482,3.98339,2621.4,2621.2,0.38152]
[1727277395483,3.6019,2621.4,2621.2,0.38152]
[1727277395692,0.38151,2621.3,2621.1,1.37918047]
[1727277395883,0.3871,2621.2,2621.1,0.38152]
[1727277396890,0.3871,2621.2,2621.0,0.99766047]
[1727277396891,0.38153,2621.1,2621.0,0.99766047]
[1727277397091,0.38156,2620.9,2620.8,1.37923047]
[1727277397291,0.38158,2620.8,2620.7,1.37924047]
[1727277397481,0.38156,2620.9,2620.8,0.38157]
[1727277397784,2.68,2621.0,2620.9,0.38156]
[1727277397785,3.06155,2621.0,2620.9,0.38156]
[1727277397987,6.67063,2621.1,2621.0,0.38155]
[1727277398485,6.2891,2621.1,2621.0,0.38155]
[1727277399395,6.67063,2621.1,2621.0,0.38155]
[1727277399581,6.2891,2621.1,2621.0,0.38155]
[1727277399777,3.6091,2621.1,2621.0,0.38155]
[1727277400186,3.6091,2621.1,2620.8,0.99766047]
[1727277400383,6.2891,2621.1,2620.8,0.99766047]
[1727277400590,6.2891,2621.1,2620.7,1.89129071]
[1727277400591,6.2891,2621.1,2620.7,1.37924047]
[1727277400780,3.06157,2620.9,2620.8,0.38158]
[1727277400987,0.38158,2620.8,2620.7,1.37924047]
[1727277401193,0.38158,2620.8,2620.6,0.99766047]
[1727277401491,0.38158,2620.8,2620.7,0.38159]
[1727277402088,0.38161,2620.6,2620.5,0.0376832]
[1727277402294,3.06161,2620.6,2620.5,0.0376832]
[1727277402686,3.45011,2620.6,2620.5,0.0376832]
[1727277403192,8.22013,2620.6,2620.5,0.0376832]
[1727277403783,9.17415,2620.6,2620.5,0.0376832]
[1727277403991,0.38168,2620.1,2620.0,1.37935047]
[1727277404195,0.38169,2620.0,2619.9,0.99766047]
[1727277404491,0.3969,2620.0,2619.9,0.38171]
[1727277404690,0.38171,2619.9,2619.8,0.38171]
[1727277404891,0.38171,2619.9,2619.6,1.37896047]
[1727277404892,0.77859,2620.0,2619.9,0.38171]
[1727277405083,3.98639,2620.0,2619.9,0.38171]
[1727277405394,6.2847,2620.0,2619.6,0.3813]
[1727277405592,6.2847,2620.0,2619.8,0.38171]
[1727277405887,6.6664,2620.0,2619.8,0.38171]
[1727277406386,6.66641,2620.0,2619.8,0.38172]
[1727277406592,0.38171,2619.9,2619.8,0.38172]
[1727277406794,6.6664,2620.0,2619.8,0.38172]
[1727277407189,3.0769,2620.0,2619.9,0.38171]
[1727277407394,0.3969,2620.0,2619.9,0.38171]
[1727277407594,0.3969,2620.0,2619.6,4.4270114]
[1727277407595,10.1015,2620.0,2619.6,4.4270114]
[1727277407795,10.1015,2620.0,2619.6,0.38174]
[1727277407796,2.68,2619.7,2619.6,0.38174]
[1727277407995,2.68,2619.7,2619.4,0.3813]
[1727277407996,0.38177,2619.5,2619.4,0.3813]
[1727277408196,2.68,2619.5,2619.4,0.76308]
[1727277408403,3.06177,2619.5,2619.4,0.76308]
[1727277408696,3.06177,2619.5,2619.4,0.3813]
[1727277408886,3.06177,2619.5,2619.3,0.3813]
[1727277409092,0.3806,2619.4,2619.3,0.3813]
[1727277409290,0.3806,2619.4,2619.3,0.7631]
[1727277409692,0.3806,2619.4,2619.3,0.3813]
[1727277409892,0.3806,2619.4,2619.3,0.7631]
[1727277410301,0.38188,2618.8,2618.6,0.99766047]
[1727277410490,2.68,2618.7,2618.6,0.3819]
[1727277410691,0.38186,2618.9,2618.7,0.38188]
[1727277410692,2.68,2618.9,2618.7,0.38188]
[1727277410895,3.43265,2618.9,2618.7,0.38188]
[1727277411093,3.0508,2618.9,2618.8,0.38187]
[1727277411295,3.0796,2619.3,2619.1,0.38182]
[1727277411501,3.46141,2619.3,2619.0,0.38183]
[1727277411699,0.38181,2619.2,2618.9,0.38184]
[1727277411902,3.4614,2619.3,2619.0,0.38184]
[1727277412400,2.68,2619.3,2619.0,0.38183]
[1727277412595,2.68,2619.3,2618.5,3.63477]
[1727277412895,2.68,2619.3,2618.7,4.42720423]
[1727277412896,2.68,2619.1,2618.7,4.42720423]
[1727277413097,0.38185,2619.0,2618.7,4.42720423]
[1727277413304,3.58965,2619.0,2618.7,0.38188]
[1727277413606,2.68,2618.8,2618.6,0.38189]
[1727277413800,2.68,2618.8,2618.7,0.38188]
[1727277414392,0.75266,2618.9,2618.3,0.7973]
[1727277414701,0.75266,2618.9,2618.7,0.38187]
[1727277414702,0.3708,2618.9,2618.7,0.38187]
[1727277415215,0.3708,2618.9,2618.6,0.38189]
[1727277415405,0.75266,2618.9,2618.6,0.38189]
[1727277415911,0.75266,2618.9,2618.5,0.38191]
[1727277416103,0.75266,2618.9,2618.3,6.6851]
[1727277416304,0.3708,2618.9,2618.4,8.09824127]
[1727277416505,3.2078,2619.0,2618.4,12.50377365]
[1727277416811,6.26965,2619.0,2618.6,0.38189]
[1727277417313,5.8878,2619.0,2618.4,8.09824127]
[1727277417516,2.68,2618.8,2618.4,8.48016127]
[1727277417726,0.3679,2618.7,2618.5,0.38191]
[1727277418409,0.7369,2618.7,2618.5,0.38191]
[1727277418713,0.7369,2618.7,2618.4,8.48016127]
[1727277418908,0.7369,2618.7,2618.4,8.09824127]
[1727277419303,1.11879,2618.7,2618.4,8.48016127]
[1727277419508,2.68,2618.6,2618.4,8.09824127]
[1727277419707,3.0619,2618.6,2618.4,8.09824127]
[1727277419911,2.68,2618.6,2618.4,8.48015127]
[1727277420215,0.7369,2618.7,2618.5,0.38191]
[1727277420402,0.7369,2618.7,2618.6,0.3819]
[1727277420598,6.26964,2619.0,2618.7,0.38188]
[1727277420811,3.58964,2619.0,2618.7,0.38188]
[1727277421110,3.58964,2619.0,2618.5,0.95479]
[1727277421111,3.2078,2619.0,2618.5,0.95479]
[1727277421307,3.2078,2619.0,2618.8,0.38186]
[1727277421711,3.58964,2619.0,2618.7,0.38188]
[1727277421908,2.68,2618.9,2618.7,0.38188]
[1727277422118,2.68,2618.9,2618.3,4.95994]
[1727277422119,2.68,2618.9,2618.8,0.38187]
[1727277422912,2.68,2618.9,2618.5,0.95478]
[1727277422913,3.2078,2619.0,2618.9,0.38185]
[1727277423209,3.2078,2619.0,2618.8,0.38186]
[1727277423413,3.2078,2619.0,2618.5,0.95478]
[1727277423414,3.2078,2619.0,2618.9,0.38185]
[1727277423804,0.7703,2619.1,2618.9,0.38185]
[1727277424114,0.405,2619.1,2619.0,0.38184]
[1727277425507,0.4023,2619.3,2619.0,0.38183]
[1727277426308,0.4023,2619.3,2618.8,1.72867]
[1727277426610,0.4023,2619.3,2619.1,0.38182]
[1727277426805,0.4023,2619.3,2618.8,0.774]
[1727277426806,0.7739,2619.4,2618.9,0.95463]
[1727277427006,0.7739,2619.4,2619.2,0.38181]
[1727277427411,0.7739,2619.4,2618.9,0.95463]
[1727277427603,0.7739,2619.4,2619.3,0.3818]
[1727277427808,0.7739,2619.4,2619.2,0.3818]
[1727277428312,1.15569,2619.4,2619.1,0.38181]
[1727277428519,3.4539,2619.4,2619.2,0.38181]
[1727277429007,3.58957,2619.5,2619.2,0.3818]
[1727277429214,3.2078,2619.5,2618.8,2.12257]
[1727277429520,3.2078,2619.5,2619.3,0.38179]
[1727277429908,3.2078,2619.5,2619.4,0.38178]
[1727277430309,2.68,2619.6,2619.2,0.95453]
[1727277430613,2.68,2619.6,2619.0,0.95461]
[1727277430614,2.68,2619.6,2619.4,0.38178]
[1727277431206,3.06175,2619.6,2619.4,0.38178]
[1727277431522,0.38177,2619.5,2619.3,0.3779]
[1727277431821,2.68,2619.4,2618.6,4.16255]
[1727277432013,0.38183,2619.1,2618.8,0.7576]
[1727277432215,0.38183,2619.1,2618.9,0.38185]
[1727277432519,3.0606,2619.2,2618.8,0.7576]
[1727277433020,3.0606,2619.2,2618.8,0.38186]
[1727277433021,2.68,2618.9,2618.8,0.38186]
[1727277433517,0.38188,2618.8,2618.6,0.38189]
[1727277433720,2.68,2618.7,2618.4,0.8027]
[1727277434013,3.83048,2618.7,2618.5,0.38191]
[1727277434417,3.4486,2618.7,2618.6,0.3819]
[1727277434610,0.7686,2618.7,2618.6,0.3819]
[1727277435005,3.2078,2619.0,2618.9,0.38185]
[1727277435212,0.7665,2619.1,2619.0,0.38184]
[1727277435509,3.2078,2619.4,2618.8,0.95467]
[1727277435809,1.33716,2619.7,2619.0,4.3647148]
[1727277436010,3.85806,2619.6,2619.3,0.38178]
[1727277436418,3.4763,2619.6,2619.2,0.38181]
[1727277436616,0.7963,2619.6,2619.5,0.38177]
[1727277436816,1.17805,2619.6,2619.0,9.06453882]
[1727277437007,0.3818,2619.3,2618.9,3.9899]
[1727277437208,0.3818,2619.3,2618.9,3.5969]
[1727277437209,0.38183,2619.1,2618.9,3.5969]
[1727277437419,0.38183,2619.1,2618.9,3.2078]
[1727277437721,0.7963,2619.0,2618.9,3.2078]
[1727277438017,0.7963,2619.0,2618.9,3.58965]
[1727277438218,3.2078,2619.4,2618.9,7.0262]
[1727277438413,3.2078,2619.4,2619.2,0.38181]
[1727277438627,3.2078,2619.4,2618.9,3.2078]
[1727277438628,0.3818,2619.3,2619.1,0.38182]
[1727277439122,3.58958,2619.4,2619.2,0.38181]
[1727277439420,3.2078,2619.4,2618.9,4.16243]
[1727277439627,3.58958,2619.4,2619.2,0.3818]
[1727277440015,3.58958,2619.4,2619.1,0.38182]
[1727277440518,0.3818,2619.3,2619.1,0.38182]
[1727277440727,0.38181,2619.2,2619.0,0.38183]
[1727277440914,0.4035,2619.1,2619.0,0.38183]
[1727277441113,0.8084,2619.1,2619.0,0.38183]
[1727277441326,0.8084,2619.1,2619.0,0.38184]
[1727277441726,3.06181,2619.3,2619.1,0.38181]
[1727277441727,0.38181,2619.3,2619.1,0.38181]
[1727277442119,0.38181,2619.2,2619.0,0.38183]
[1727277442519,3.2078,2619.4,2618.9,0.95464]
[1727277442717,0.7864,2619.5,2619.4,0.38178]
[1727277443630,0.7864,2619.5,2619.1,0.7873]
[1727277443928,1.16817,2619.5,2619.1,0.7873]
[1727277444125,3.84817,2619.5,2619.3,0.38179]
[1727277444428,3.4664,2619.5,2619.4,0.38178]
[1727277444925,0.4049,2619.5,2619.4,0.38178]
[1727277445121,6.94592,2619.8,2619.6,0.38175]
[1727277445329,3.5885,2619.8,2619.2,3.63452]
[1727277445526,3.5885,2619.8,2619.7,0.38174]
[1727277445916,3.2078,2619.8,2619.7,0.38174]
[1727277446425,0.7542,2620.2,2619.6,1.75367]
[1727277446624,0.3682,2620.1,2619.6,0.7993]
[1727277446825,0.3817,2620.0,2619.7,0.38173]
[1727277447125,0.38173,2619.8,2619.5,0.38176]
[1727277447322,0.3685,2619.7,2619.5,0.38176]
[1727277447817,0.3685,2619.7,2619.4,0.99766047]
[1727277448016,3.43024,2619.7,2619.4,0.38177]
[1727277448222,0.3685,2619.7,2619.6,0.38175]
[1727277448426,3.2078,2619.8,2619.7,0.38174]
[1727277449424,3.5763,2620.2,2619.7,3.8168]
[1727277449622,3.5763,2620.2,2619.8,1.39166047]
[1727277449924,3.5763,2620.2,2620.0,0.38168]
[1727277450517,3.5763,2620.2,2620.1,0.38168]
[1727277450832,0.7892,2620.3,2620.2,0.38166]
[1727277451035,0.3839,2620.3,2620.2,0.38166]
[1727277451330,0.3749,2620.4,2620.3,0.38165]
[1727277451734,0.3749,2620.4,2620.2,1.37931047]
[1727277451920,0.3749,2620.4,2620.1,1.38166047]
[1727277451921,3.0549,2620.4,2620.1,1.38166047]
[1727277452121,0.38165,2620.3,2619.9,0.99766047]
[1727277452327,0.77786,2620.2,2620.0,0.38169]
[1727277452631,0.78489,2620.1,2619.8,0.99766047]
[1727277452929,0.78489,2620.1,2619.9,0.3817]
[1727277453234,0.38171,2619.9,2619.7,1.37939047]
[1727277453428,0.38171,2619.9,2619.7,0.38173]
[1727277453927,3.4644,2620.0,2619.8,0.38172]
[1727277454129,3.0827,2620.0,2619.6,4.20546047]
[1727277454331,0.4027,2620.0,2619.6,4.20546047]
[1727277454521,0.4027,2620.0,2619.8,0.38171]
[1727277454522,0.7844,2620.0,2619.8,0.38171]
[1727277454723,0.4027,2620.0,2619.6,7.83982047]
[1727277455034,0.4027,2620.0,2619.9,0.38171]
[1727277457122,0.4027,2620.0,2619.8,0.3918]
[1727277457123,0.4027,2620.0,2619.8,0.77351]
[1727277457324,0.4027,2620.0,2619.9,0.38171]
[1727277458926,0.4032,2620.1,2619.9,0.38171]
[1727277459132,0.4032,2620.1,2620.0,0.38169]
[1727277460529,0.4032,2620.1,2619.6,7.83984047]
[1727277460829,0.4032,2620.1,2620.0,0.38169]